bitfinex/quotes_SOLUSD_20250206
["timestamp","ask_amount","ask_price","bid_price","bid_amount"]
[1738865678648,23.6919596,189.97,189.96,0.063]
[1738865679143,43.6919596,189.97,189.96,0.063]
[1738865680778,35.60236714,189.97,189.96,0.063]
[1738865681677,22.11454902,189.97,189.96,0.063]
[1738865683205,0.11454902,189.97,189.96,13.55081812]
[1738865683508,1.11454902,189.97,189.96,13.55081812]
[1738865683671,1.11454902,189.97,189.96,0.063]
[1738865684092,1.11454902,189.97,189.96,13.55081812]
[1738865684776,0.11454902,189.97,189.96,26.96266665]
[1738865684975,0.11454902,189.97,189.96,32.22686665]
[1738865685309,0.11454902,189.97,189.96,26.96266665]
[1738865686482,0.11454902,189.97,189.96,13.47484853]
[1738865686801,1.11454902,189.97,189.96,13.47484853]
[1738865686979,2.11454902,189.97,189.96,13.47484853]
[1738865687804,1.11454902,189.97,189.96,26.96266665]
[1738865688505,1.11454902,189.97,189.96,13.47484853]
[1738865689282,0.11454902,189.97,189.96,26.96266665]
[1738865690301,0.11454902,189.97,189.96,32.22686665]
[1738865690504,0.11454902,189.97,189.96,26.96266665]
[1738865690678,0.11454902,189.97,189.96,13.47484853]
[1738865691297,0.11454902,189.97,189.96,26.96266665]
[1738865693810,0.21546539,189.97,189.96,26.96266665]
[1738865693989,0.10091637,189.97,189.96,26.96266665]
[1738865696506,1.10091637,189.97,189.96,26.96266665]
[1738865696687,2.10091637,189.97,189.96,13.55081812]
[1738865696883,2.10091637,189.97,189.96,0.063]
[1738865697085,52.10091637,189.97,189.96,0.063]
[1738865698385,53.08827466,189.97,189.96,0.063]
[1738865698612,66.57609278,189.97,189.96,0.063]
[1738865698781,67.57609278,189.97,189.96,0.063]
[1738865698983,67.95256278,189.97,189.96,0.063]
[1738865699212,66.82707278,189.97,189.96,0.063]
[1738865699387,66.57609278,189.97,189.96,0.063]
[1738865699903,66.82707278,189.97,189.96,0.063]
[1738865700911,67.82707278,189.97,189.96,0.063]
[1738865701209,66.82707278,189.97,189.96,0.063]
[1738865701415,53.08827466,189.97,189.96,0.063]
[1738865701612,22.10091637,189.97,189.96,0.063]
[1738865702021,2.10091637,189.97,189.96,0.063]
[1738865702389,52.10091637,189.97,189.96,0.063]
[1738865702588,65.58873449,189.97,189.96,0.063]
[1738865702808,66.96520449,189.97,189.96,0.063]
[1738865702994,67.96520449,189.97,189.96,0.063]
[1738865707511,65.96520449,189.97,189.96,0.063]
[1738865707702,71.03971449,189.97,189.96,0.063]
[1738865707898,70.78873449,189.97,189.96,0.063]
[1738865708104,57.30091637,189.97,189.96,0.063]
[1738865708305,37.30091637,189.97,189.96,0.063]
[1738865708605,32.10091637,189.97,189.96,0.063]
[1738865709131,45.58873449,189.97,189.96,0.063]
[1738865709326,32.10091637,189.97,189.96,0.063]
[1738865709997,46.83971449,189.97,189.96,0.063]
[1738865710518,46.96520449,189.97,189.96,0.063]
[1738865710828,32.35189637,189.97,189.96,0.063]
[1738865711122,45.96520449,189.97,189.96,0.063]
[1738865711818,32.47738637,189.97,189.96,0.063]
[1738865712024,32.35189637,189.97,189.96,0.063]
[1738865712229,45.83971449,189.97,189.96,0.063]
[1738865712427,45.96520449,189.97,189.96,0.063]
[1738865713937,45.96046942,189.97,189.96,0.063]
[1738865714640,32.4726513,189.97,189.96,0.063]
[1738865715135,32.0961813,189.97,189.96,0.063]
[1738865715441,2.0961813,189.97,189.96,13.55081812]
[1738865715616,22.0961813,189.97,189.96,0.063]
[1738865717645,52.0961813,189.97,189.96,0.063]
[1738865719739,66.96046942,189.97,189.96,0.063]
[1738865720446,65.83497942,189.97,189.96,0.063]
[1738865721027,52.0961813,189.97,189.96,0.063]
[1738865722348,2.0961813,189.97,189.96,0.063]
[1738865722550,53.08336762,189.97,189.96,0.063]
[1738865723252,66.82216574,189.97,189.96,0.063]
[1738865723947,66.94765574,189.97,189.96,0.063]
[1738865724155,68.94765574,189.97,189.96,0.063]
[1738865725448,67.94765574,189.97,189.96,0.063]
[1738865726337,68.94765574,189.97,189.96,0.063]
[1738865726527,67.94765574,189.97,189.96,0.063]
[1738865727220,66.94765574,189.97,189.96,0.063]
[1738865727422,67.94765574,189.97,189.96,0.063]
[1738865727623,71.96765574,189.97,189.96,0.063]
[1738865728322,58.10336762,189.97,189.96,0.063]
[1738865728522,52.0961813,189.97,189.96,0.063]
[1738865730250,32.0961813,189.97,189.96,0.063]
[1738865730446,45.83497942,189.97,189.96,0.063]
[1738865731745,46.83497942,189.97,189.96,0.063]
[1738865732049,45.83497942,189.97,189.96,0.063]
[1738865732348,32.3471613,189.97,189.96,0.063]
[1738865733149,32.0961813,189.97,189.96,0.063]
[1738865733748,32.19572107,189.97,189.96,0.063]
[1738865733954,32.09953977,189.97,189.96,0.063]
[1738865734151,45.83833789,189.97,189.96,0.063]
[1738865734850,32.35051977,189.97,189.96,0.063]
[1738865735855,32.09953977,189.97,189.96,0.063]
[1738865736162,45.83833789,189.97,189.96,0.063]
[1738865736632,32.09953977,189.97,189.96,0.063]
[1738865737964,45.58735789,189.97,189.96,0.063]
[1738865738136,47.96382789,189.97,189.96,0.063]
[1738865738544,46.96382789,189.97,189.96,0.063]
[1738865738741,45.96382789,189.97,189.96,0.063]
[1738865739253,45.83833789,189.97,189.96,0.063]
[1738865741654,45.58735789,189.97,189.96,0.063]
[1738865742762,45.83833789,189.97,189.96,0.063]
[1738865744745,46.96382789,189.97,189.96,0.063]
[1738865745149,45.96382789,189.97,189.96,0.063]
[1738865745465,45.58735789,189.97,189.96,0.063]
[1738865745871,32.09953977,189.97,189.96,0.063]
[1738865746056,45.58735789,189.97,189.96,0.063]
[1738865746254,45.96382789,189.97,189.96,0.063]
[1738865747170,45.58735789,189.97,189.96,0.063]
[1738865748768,45.96382789,189.97,189.96,0.063]
[1738865749980,45.58735789,189.97,189.96,0.063]
[1738865752287,32.09953977,189.97,189.96,0.063]
[1738865753886,32.48010058,189.97,189.96,0.063]
[1738865754184,32.10363058,189.97,189.96,0.063]
[1738865755966,2.10363058,189.97,189.96,0.063]
[1738865756586,1.10363058,189.97,189.96,13.55081812]
[1738865756783,1.10363058,189.97,189.96,16.01406348]
[1738865756957,0.1076612,189.98,189.96,29.42591201]
[1738865757159,1.11221575,189.99,189.97,22.99621201]
[1738865757160,0.11221575,189.99,189.97,22.99621201]
[1738865757487,0.11221575,189.99,189.98,11.19846348]
[1738865757862,1.11221575,189.99,189.98,11.19846348]
[1738865758275,2.11221575,189.99,189.98,11.19846348]
[1738865758484,2.11221575,189.99,189.98,1.6141]
[1738865758988,2.0,189.97,189.96,6.4297]
[1738865760785,2.0,189.97,189.96,0.063]
[1738865761585,16.4716533,189.97,189.96,0.063]
[1738865761786,16.8481233,189.97,189.96,0.063]
[1738865762168,16.4716533,189.97,189.96,0.063]
[1738865762687,2.0,189.97,189.96,0.063]
[1738865763497,15.48433881,189.97,189.96,0.063]
[1738865764376,16.84809775,189.97,189.96,0.063]
[1738865766382,2.98728894,189.97,189.96,0.063]
[1738865766585,2.0,189.97,189.96,0.063]
[1738865766967,22.0,189.97,189.96,0.063]
[1738865767283,2.0,189.97,189.96,0.063]
[1738865767683,15.48433881,189.97,189.96,0.063]
[1738865767887,2.0,189.97,189.96,0.063]
[1738865770382,15.48433881,189.97,189.96,0.063]
[1738865771397,16.86080881,189.97,189.96,0.063]
[1738865771692,25.96668781,189.97,189.96,0.063]
[1738865771898,24.96668781,189.97,189.96,0.063]
[1738865772813,23.96668781,189.97,189.96,0.063]
[1738865773104,23.59021781,189.97,189.96,0.063]
[1738865773267,2.0,189.97,189.96,0.063]
[1738865773801,2.11071123,189.97,189.96,0.063]
[1738865774380,22.11071123,189.97,189.96,0.063]
[1738865774693,22.11071123,189.97,189.96,13.54733881]
[1738865775071,1.11071123,189.97,189.96,35.10778734]
[1738865775281,0.11535807,189.98,189.96,35.10778734]
[1738865775472,0.09486994,189.99,189.97,26.89618734]
[1738865775673,0.11273229,190.01,189.99,13.41184853]
[1738865775896,0.11273229,190.01,190.0,13.48433881]
[1738865776097,0.11273229,190.01,190.0,26.89618734]
[1738865776396,0.11273229,190.01,190.0,28.44618734]
[1738865776700,0.11084214,190.02,190.01,26.89618734]
[1738865777202,0.14133248,190.03,190.02,26.89618734]
[1738865777577,0.14133248,190.03,190.02,32.15878734]
[1738865778073,0.10886269,190.04,190.03,13.41184853]
[1738865778402,0.11044843,190.06,190.03,26.89618734]
[1738865778702,0.11044843,190.06,190.04,26.89618734]
[1738865779096,0.11044843,190.06,190.05,13.41184853]
[1738865779279,1.0,190.11,190.05,28.43738734]
[1738865779603,1.0,190.11,190.1,13.48433881]
[1738865779804,1.0,190.12,190.11,19.41554853]
[1738865779970,1.03,190.13,190.11,32.89988734]
[1738865780175,1.0,190.12,190.11,32.89988734]
[1738865780483,0.03,190.13,190.11,32.89988734]
[1738865780679,1.03,190.13,190.12,26.89618734]
[1738865780886,2.03,190.13,190.12,13.41184853]
[1738865781199,2.0,190.1,190.08,13.48433881]
[1738865781398,1.0,190.07,190.06,19.88473881]
[1738865781576,2.0,190.07,190.06,6.4004]
[1738865781978,1.0,190.07,190.06,33.29658734]
[1738865782209,1.0,190.08,190.07,13.41184853]
[1738865782407,1.0,190.1,190.07,26.89618734]
[1738865782606,1.0,190.1,190.06,11.6618]
[1738865782607,1.0,190.12,190.1,13.41184853]
[1738865782785,1.0,190.12,190.11,13.48433881]
[1738865783187,2.0,190.12,190.11,13.48433881]
[1738865783397,0.03,190.13,190.11,13.48433881]
[1738865783598,0.03,190.13,190.12,32.15598734]
[1738865784012,0.03,190.17,190.13,20.06874853]
[1738865784579,0.03,190.17,190.16,26.89618734]
[1738865785487,0.03,190.17,190.16,45.63922615]
[1738865785802,0.03,190.18,190.17,13.41184853]
[1738865786001,0.03,190.18,190.17,26.89618734]
[1738865786413,0.03,190.18,190.17,40.38052615]
[1738865786709,0.03,190.18,190.17,45.63892615]
[1738865786913,1.03,190.23,190.22,37.31515695]
[1738865786914,0.03,190.23,190.22,37.31515695]
[1738865787091,1.0,190.22,190.21,23.90330842]
[1738865787412,2.0,190.22,190.21,13.41184853]
[1738865787618,1.0,190.22,190.21,37.31515695]
[1738865788105,0.03,190.23,190.21,42.57245695]
[1738865788336,0.03,190.23,190.22,38.95005695]
[1738865788535,0.03,190.23,190.22,45.23665695]
[1738865789145,0.03,190.23,190.22,50.49365695]
[1738865789625,1.0,190.3,190.23,13.41184853]
[1738865789809,1.03,190.31,190.3,13.41184853]
[1738865790018,1.03,190.31,190.3,37.31515695]
[1738865790630,2.03,190.31,190.3,13.41184853]
[1738865791017,1.0,190.3,190.28,23.90330842]
[1738865791335,1.0,190.25,190.23,23.90330842]
[1738865791508,1.0,190.24,190.22,7.9215]
[1738865791710,1.0,190.24,190.23,36.81515695]
[1738865792839,1.0,190.29,190.24,13.41184853]
[1738865793005,1.0,190.3,190.29,13.41184853]
[1738865793209,1.0,190.3,190.29,37.31515695]
[1738865793435,1.03,190.31,190.29,37.31515695]
[1738865793635,0.03,190.31,190.3,37.31515695]
[1738865793805,0.13648655,190.31,190.3,37.31515695]
[1738865795018,0.13648655,190.31,190.3,42.56995695]
[1738865795644,0.13648655,190.31,190.3,37.31515695]
[1738865795827,0.13648655,190.31,190.3,42.56995695]
[1738865796133,0.13648655,190.31,190.3,68.45563537]
[1738865796639,0.13467582,190.33,190.3,68.45563537]
[1738865796640,0.13467582,190.33,190.31,13.78831853]
[1738865796809,0.13467582,190.33,190.32,37.69162695]
[1738865798138,0.13467582,190.33,190.32,42.94592695]
[1738865798340,0.13467582,190.33,190.32,42.56945695]
[1738865798923,0.13467582,190.33,190.32,37.31515695]
[1738865799126,1.13467582,190.33,190.32,37.31515695]
[1738865799333,0.13467582,190.33,190.32,37.31515695]
[1738865800241,0.13467582,190.33,190.32,42.56945695]
[1738865801642,0.13467582,190.33,190.32,42.94592695]
[1738865801814,0.10663029,190.35,190.34,0.12549]
[1738865802010,0.10663029,190.35,190.34,37.31515695]
[1738865803116,0.10663029,190.35,190.34,42.56885695]
[1738865804640,2.10663029,190.35,190.34,13.41184853]
[1738865806135,1.10663029,190.35,190.34,37.31515695]
[1738865806338,2.10663029,190.35,190.34,37.31515695]
[1738865806735,1.10663029,190.35,190.34,37.31515695]
[1738865807080,0.13034271,190.38,190.36,0.12549]
[1738865807225,0.03,190.43,190.39,13.41184853]
[1738865807425,0.03,190.43,190.42,37.31515695]
[1738865808241,1.03,190.43,190.42,23.90330842]
[1738865808549,2.03,190.43,190.42,23.90330842]
[1738865809054,0.03,190.43,190.42,37.31515695]
[1738865809649,0.03,190.43,190.42,42.56665695]
[1738865813128,0.03,190.48,190.43,13.78831853]
[1738865813343,0.03,190.48,190.47,37.31515695]
[1738865813735,0.13666268,190.48,190.47,37.31515695]
[1738865813938,0.13666268,190.48,190.47,37.69162695]
[1738865814142,0.13666268,190.48,190.47,37.31515695]
[1738865814534,1.13666268,190.48,190.47,37.31515695]
[1738865815847,0.13666268,190.48,190.47,37.31515695]
[1738865816843,1.13666268,190.48,190.47,37.31515695]
[1738865817359,2.0,190.47,190.46,23.90330842]
[1738865819563,2.0,190.45,190.44,23.90330842]
[1738865820135,1.0,190.47,190.44,37.31515695]
[1738865820445,2.0,190.47,190.46,37.31515695]
[1738865820639,1.0,190.47,190.46,37.31515695]
[1738865820840,0.13666268,190.48,190.47,13.41184853]
[1738865821062,0.13666268,190.48,190.47,37.31515695]
[1738865821363,0.13666268,190.48,190.47,66.84503537]
[1738865821542,0.11543659,190.5,190.48,53.98901684]
[1738865821743,0.11543659,190.5,190.49,61.21846537]
[1738865821942,0.10673368,190.54,190.48,6.1824]
[1738865821943,0.76932055,190.56,190.53,13.41184853]
[1738865822154,1.76932055,190.56,190.55,37.31515695]
[1738865822367,0.76932055,190.56,190.55,37.31515695]
[1738865822553,1.76932055,190.56,190.55,37.31515695]
[1738865822736,0.76932055,190.56,190.55,37.31515695]
[1738865823141,1.76932055,190.56,190.55,23.90330842]
[1738865823358,1.0,190.54,190.53,23.90330842]
[1738865823663,1.0,190.5,190.46,1.5014]
[1738865823835,24.00886681,190.56,190.46,1.5014]
[1738865823836,1.66376216,190.49,190.46,1.5014]
[1738865824465,1.66376216,190.49,190.48,37.31515695]
[1738865824762,1.66376216,190.49,190.48,23.90330842]
[1738865825247,21.66376216,190.51,190.48,37.31515695]
[1738865825444,21.66376216,190.51,190.5,23.90330842]
[1738865825762,1.66376216,190.52,190.5,23.90330842]
[1738865825962,1.66376216,190.52,190.51,23.90330842]
[1738865826263,1.66376216,190.53,190.51,23.90330842]
[1738865826459,1.66376216,190.53,190.52,23.90330842]
[1738865826758,0.66376216,190.53,190.52,23.90330842]
[1738865826964,0.66376216,190.55,190.53,13.41184853]
[1738865827160,1.76932055,190.56,190.54,37.31515695]
[1738865827364,0.76932055,190.56,190.55,37.31515695]
[1738865827543,1.76932055,190.56,190.55,23.90330842]
[1738865827962,1.0,190.54,190.51,0.063]
[1738865828160,1.66376216,190.52,190.51,13.47484853]
[1738865828675,1.66376216,190.52,190.51,23.96630842]
[1738865828849,21.66376216,190.52,190.51,0.063]
[1738865829056,51.66376216,190.52,190.51,0.063]
[1738865829252,21.66376216,190.52,190.51,0.063]
[1738865830465,51.66376216,190.52,190.51,0.063]
[1738865830665,75.56707058,190.52,190.51,0.063]
[1738865831174,75.94354058,190.52,190.51,0.063]
[1738865831545,51.66376216,190.52,190.51,0.063]
[1738865831775,74.12807058,190.52,190.51,0.063]
[1738865832347,75.48900301,190.52,190.51,0.063]
[1738865833380,74.50454058,190.52,190.51,0.063]
[1738865833971,75.59502919,190.52,190.51,0.063]
[1738865834368,50.70721302,190.52,190.51,0.063]
[1738865834578,0.10598086,190.52,190.51,23.96630842]
[1738865834757,0.33474935,190.53,190.52,13.41184853]
[1738865834758,0.10998719,190.53,190.52,13.41184853]
[1738865834957,0.10998719,190.53,190.52,37.31515695]
[1738865836059,0.1041899,190.55,190.54,13.41184853]
[1738865836253,0.10853176,190.56,190.55,13.78831853]
[1738865836454,0.11285875,190.58,190.56,13.41184853]
[1738865836649,0.11285875,190.58,190.56,37.31515695]
[1738865837154,0.11285875,190.58,190.56,42.56275695]
[1738865837353,0.11285875,190.58,190.57,21.39081853]
[1738865837561,0.11285875,190.58,190.57,69.19743537]
[1738865837773,0.11285875,190.58,190.57,45.29412695]
[1738865838683,0.11285875,190.58,190.57,50.54152695]
[1738865839663,0.00285875,190.58,190.57,50.54152695]
[1738865839976,0.00285875,190.58,190.57,50.16505695]
[1738865841771,0.00285875,190.58,190.57,38.86425695]
[1738865841977,0.22762091,190.58,190.57,23.90330842]
[1738865842274,0.00285875,190.58,190.57,42.56255695]
[1738865846054,13.82830349,190.72,190.59,0.25098]
[1738865846284,1.5638,190.77,190.71,23.90330842]
[1738865846798,23.90330842,190.8,190.73,23.90330842]
[1738865846959,4.8,190.82,190.73,23.90330842]
[1738865847283,4.8,190.82,190.72,23.90330842]
[1738865847284,23.90330842,190.79,190.72,23.90330842]
[1738865847491,20.03,190.76,190.72,23.90330842]
[1738865847864,20.03,190.76,190.74,23.90330842]
[1738865848078,0.03,190.76,190.75,23.90330842]
[1738865848586,0.03,190.76,190.75,37.31515695]
[1738865850371,0.03,190.76,190.73,23.90330842]
[1738865850572,0.03,190.76,190.6,174.21910842]
[1738865850573,0.03,190.76,190.7,23.90330842]
[1738865850965,23.90330842,190.73,190.67,23.90330842]
[1738865851162,23.90330842,190.71,190.64,23.90330842]
[1738865851387,20.0,190.7,190.57,7.741]
[1738865851568,23.90330842,190.67,190.61,23.90330842]
[1738865851768,23.90330842,190.69,190.62,23.90330842]
[1738865851964,23.90330842,190.66,190.6,13.41184853]
[1738865852162,23.90330842,190.67,190.6,37.31515695]
[1738865852365,20.0,190.65,190.61,23.90330842]
[1738865852568,23.90330842,190.72,190.64,23.90330842]
[1738865852787,0.03,190.76,190.64,23.90330842]
[1738865852788,0.03,190.76,190.64,0.25098]
[1738865852992,0.03,190.76,190.67,0.12549]
[1738865853171,0.03,190.76,190.68,0.25098]
[1738865853371,0.03,190.76,190.69,0.12549]
[1738865853692,0.03,190.76,190.7,13.66282853]
[1738865853897,0.10088413,190.71,190.7,0.25098]
[1738865854085,0.10088413,190.71,190.7,37.56613695]
[1738865854623,0.10088413,190.71,190.7,61.46944537]
[1738865854765,0.10088413,190.71,190.7,37.56613695]
[1738865854963,0.10088413,190.71,190.7,37.31515695]
[1738865856207,0.10088413,190.71,190.7,23.90330842]
[1738865856391,0.10088413,190.71,190.7,37.31515695]
[1738865857483,0.10088413,190.71,190.66,23.90330842]
[1738865858084,0.10088413,190.71,190.67,13.41184853]
[1738865859298,0.10088413,190.71,190.65,23.90330842]
[1738865859647,23.90330842,190.7,190.64,23.90330842]
[1738865859781,23.90330842,190.66,190.59,23.90330842]
[1738865860285,23.90330842,190.63,190.57,23.90330842]
[1738865860798,43.90330842,190.64,190.57,23.90330842]
[1738865860996,23.90330842,190.63,190.56,37.37815695]
[1738865861181,43.90330842,190.64,190.57,23.90330842]
[1738865861595,43.90330842,190.64,190.56,37.37815695]
[1738865861984,20.0,190.64,190.58,23.90330842]
[1738865862287,20.0,190.62,190.57,23.90330842]
[1738865862688,20.0,190.62,190.58,38.6984648]
[1738865863107,20.0,190.63,190.61,38.6984648]
[1738865863315,20.0,190.63,190.59,38.6984648]
[1738865863834,20.0,190.64,190.61,38.6984648]
[1738865864128,38.6984648,190.7,190.63,38.6984648]
[1738865864341,43.4584648,190.7,190.63,38.6984648]
[1738865864713,20.0,190.67,190.63,38.6984648]
[1738865865329,0.03,190.69,190.64,38.6984648]
[1738865865534,20.0,190.68,190.64,38.6984648]
[1738865866615,0.03,190.69,190.64,38.6984648]
[1738865867018,20.0,190.68,190.65,38.6984648]
[1738865867542,0.03,190.69,190.65,38.6984648]
[1738865868038,20.0,190.68,190.64,38.6984648]
[1738865868940,0.03,190.69,190.64,38.6984648]
[1738865869145,0.03,190.69,190.67,38.6984648]
[1738865869443,0.03,190.69,190.68,52.11031333]
[1738865871547,0.03,190.69,190.68,57.60559333]
[1738865872738,0.03,190.69,190.68,52.11031333]
[1738865873243,0.03,190.69,190.68,58.21591333]
[1738865873823,0.13312946,190.69,190.68,58.21591333]
[1738865874927,0.13312946,190.69,190.68,58.46689333]
[1738865875249,0.13312946,190.69,190.68,102.40965813]
[1738865875439,0.13312946,190.69,190.68,103.53514813]
[1738865875950,0.13312946,190.69,190.68,102.53514813]
[1738865876151,0.13312946,190.69,190.68,63.83668333]
[1738865876849,0.13312946,190.69,190.68,63.71119333]
[1738865877151,0.13312946,190.69,190.68,58.46689333]
[1738865877444,0.13312946,190.69,190.68,63.71119333]
[1738865877750,0.13312946,190.69,190.68,58.21591333]
[1738865878239,0.13312946,190.69,190.68,63.46021333]
[1738865878449,0.13312946,190.69,190.68,58.21591333]
[1738865879669,0.13312946,190.69,190.68,52.11031333]
[1738865879954,0.13312946,190.69,190.67,38.6984648]
[1738865880448,0.13312946,190.69,190.66,38.6984648]
[1738865880833,0.13312946,190.69,190.68,38.6984648]
[1738865881134,0.13312946,190.69,190.68,52.36129333]
[1738865881345,0.13312946,190.69,190.68,91.18524813]
[1738865881739,0.13312946,190.69,190.68,52.48678333]
[1738865881949,0.13312946,190.69,190.68,52.11031333]
[1738865882326,0.13312946,190.69,190.68,52.36129333]
[1738865882534,0.13312946,190.69,190.68,52.48678333]
[1738865882859,0.13312946,190.69,190.68,13.78831853]
[1738865883027,0.13312946,190.69,190.68,67.70281929]
[1738865883555,0.13312946,190.69,190.68,42.80497391]
[1738865883726,0.13312946,190.69,190.68,42.42850391]
[1738865884141,0.13312946,190.69,190.68,68.70281929]
[1738865884356,0.13312946,190.69,190.68,67.70281929]
[1738865884534,0.13312946,190.69,190.68,68.70281929]
[1738865885033,0.1047953,190.72,190.71,38.65534853]
[1738865885346,32.72219092,190.82,190.72,14.91380853]
[1738865885551,32.72219092,190.82,190.76,13.41184853]
[1738865885727,32.72219092,190.82,190.76,37.18420391]
[1738865886482,8.18054773,190.8,190.76,37.56067391]
[1738865886656,8.18054773,190.8,190.77,13.78831853]
[1738865886978,8.18054773,190.8,190.78,13.41184853]
[1738865887145,8.18054773,190.8,190.79,66.57432929]
[1738865888383,8.18054773,190.8,190.79,42.67648391]
[1738865888585,8.18054773,190.8,190.79,37.43518391]
[1738865888880,8.18054773,190.8,190.79,37.18420391]
[1738865889268,0.03,190.85,190.79,23.77235538]
[1738865889452,0.03,190.85,190.83,23.77235538]
[1738865889974,0.03,190.85,190.83,37.18420391]
[1738865890456,0.03,190.85,190.84,23.77235538]
[1738865890658,0.03,190.85,190.83,23.77235538]
[1738865890852,0.03,190.85,190.82,23.77235538]
[1738865891064,0.03,190.85,190.83,13.41184853]
[1738865891479,0.03,190.85,190.79,23.77235538]
[1738865891685,0.03,190.85,190.82,37.18420391]
[1738865891984,0.03,190.85,190.83,23.77235538]
[1738865892562,0.03,190.85,190.84,13.41184853]
[1738865892769,0.03,190.85,190.84,37.18420391]
[1738865893278,0.03,190.85,190.84,37.43518391]
[1738865893867,0.14407779,190.85,190.84,37.43518391]
[1738865894078,0.14407779,190.85,190.84,37.18420391]
[1738865894769,0.14407779,190.85,190.84,42.67508391]
[1738865895091,0.14407779,190.85,190.84,37.43518391]
[1738865895274,0.14407779,190.85,190.84,37.18420391]
[1738865895576,0.14407779,190.85,190.84,42.42410391]
[1738865895781,0.14407779,190.85,190.84,42.67508391]
[1738865895961,0.14407779,190.85,190.84,37.43518391]
[1738865896154,0.14407779,190.85,190.84,37.18420391]
[1738865896687,0.14407779,190.85,190.81,23.77235538]
[1738865896851,0.14407779,190.85,190.79,23.77235538]
[1738865897059,23.77235538,190.84,190.78,23.77235538]
[1738865897265,23.77235538,190.84,190.79,13.41184853]
[1738865897575,23.91643317,190.85,190.79,13.41184853]
[1738865897768,23.77235538,190.83,190.77,23.77235538]
[1738865897952,0.14407779,190.85,190.8,13.41184853]
[1738865898156,0.14407779,190.85,190.82,13.41184853]
[1738865898385,0.14407779,190.85,190.84,13.41184853]
[1738865898557,0.14407779,190.85,190.83,23.77235538]
[1738865898753,0.14407779,190.85,190.81,23.77235538]
[1738865898956,0.14407779,190.85,190.79,23.77235538]
[1738865899754,0.14407779,190.85,190.8,37.18420391]
[1738865899956,0.14407779,190.85,190.8,13.41184853]
[1738865900175,0.14407779,190.85,190.82,37.18420391]
[1738865900568,0.14407779,190.85,190.82,13.41184853]
[1738865901492,0.14407779,190.85,190.79,23.77235538]
[1738865902182,0.14407779,190.85,190.8,23.77235538]
[1738865902382,0.14407779,190.85,190.8,13.41184853]
[1738865902581,23.77235538,190.84,190.78,0.063]
[1738865903076,23.77235538,190.84,190.78,13.47484853]
[1738865903276,23.77235538,190.83,190.78,0.063]
[1738865903474,23.77235538,190.81,190.78,0.063]
[1738865904602,23.77235538,190.79,190.78,0.063]
[1738865904895,23.77235538,190.8,190.78,0.063]
[1738865905098,23.77235538,190.81,190.78,0.063]
[1738865905505,23.77235538,190.83,190.78,0.063]
[1738865905708,0.14407779,190.85,190.79,23.77235538]
[1738865906001,0.14407779,190.85,190.81,23.77235538]
[1738865906199,0.14407779,190.85,190.8,23.77235538]
[1738865906495,0.14407779,190.85,190.8,13.41184853]
[1738865906670,0.14407779,190.85,190.8,37.18420391]
[1738865907291,23.77235538,190.83,190.78,0.063]
[1738865907499,23.77235538,190.81,190.78,0.063]
[1738865907683,23.77235538,190.8,190.78,0.063]
[1738865907881,23.77235538,190.81,190.78,0.063]
[1738865908295,23.77235538,190.8,190.78,0.063]
[1738865908682,23.77235538,190.79,190.78,0.063]
[1738865908899,43.77235538,190.79,190.78,0.063]
[1738865909885,47.31542538,190.79,190.78,0.063]
[1738865910089,48.29865105,190.79,190.78,0.063]
[1738865910597,20.0,190.72,190.65,0.063]
[1738865910770,23.77235538,190.7,190.65,0.063]
[1738865911190,23.77235538,190.69,190.65,0.063]
[1738865911805,5.36969,190.74,190.66,13.41184853]
[1738865911806,20.0,190.7,190.66,13.41184853]
[1738865911982,20.0,190.7,190.67,23.77235538]
[1738865912183,4.72,190.74,190.68,23.77235538]
[1738865912387,23.77235538,190.77,190.7,23.77235538]
[1738865912579,1.6425,190.79,190.73,23.77235538]
[1738865912911,20.0,190.73,190.65,0.063]
[1738865913081,20.0,190.74,190.65,0.063]
[1738865913500,23.77235538,190.73,190.68,0.063]
[1738865913901,0.10142168,190.69,190.68,13.47484853]
[1738865914207,0.10142168,190.69,190.68,37.24720391]
[1738865914577,0.10142168,190.69,190.68,37.49818391]
[1738865914776,0.10142168,190.69,190.68,39.04008391]
[1738865915088,0.10142168,190.69,190.68,63.06341929]